bitfinex/quotes_BTCUSD_20241119
["timestamp","ask_amount","ask_price","bid_price","bid_amount"]
[1731998459997,0.02036711,91911.0,91910.0,0.108802]
[1731998460208,0.02236711,91911.0,91910.0,0.108802]
[1731998462394,0.02636711,91911.0,91910.0,0.109802]
[1731998462632,0.02036711,91911.0,91910.0,0.108802]
[1731998463519,0.02436711,91911.0,91910.0,0.109802]
[1731998463732,0.02636711,91911.0,91910.0,0.109802]
[1731998463983,0.006,91911.0,91910.0,0.25615653]
[1731998464189,0.004,91911.0,91910.0,0.25615653]
[1731998464605,0.004,91911.0,91910.0,0.109802]
[1731998464844,0.00171,91913.0,91912.0,0.108799]
[1731998466226,0.00271,91913.0,91912.0,0.110799]
[1731998466425,0.00271,91913.0,91912.0,0.25706008]
[1731998466641,0.00271,91913.0,91912.0,0.25806008]
[1731998468513,0.00271,91913.0,91912.0,0.111799]
[1731998469377,0.00271,91913.0,91912.0,0.38735125]
[1731998469545,0.00271,91913.0,91912.0,0.19231141]
[1731998470172,0.00271,91913.0,91912.0,0.43588032]
[1731998470422,0.00271,91913.0,91912.0,0.19231141]
[1731998470552,0.00271,91913.0,91912.0,0.4358003]
[1731998471259,0.00271,91913.0,91912.0,0.5358003]
[1731998471465,0.00271,91913.0,91912.0,0.29231141]
[1731998472111,0.00271,91913.0,91912.0,0.42041141]
[1731998473018,0.00171,91913.0,91912.0,0.41741141]
[1731998473240,0.00171,91913.0,91912.0,0.336899]
[1731998473429,0.00271,91913.0,91912.0,0.350899]
[1731998474107,0.00571,91913.0,91912.0,0.367899]
[1731998474742,0.00471,91913.0,91912.0,0.353899]
[1731998474929,0.00471,91913.0,91912.0,0.366899]
[1731998475199,0.00271,91913.0,91912.0,0.349899]
[1731998475408,0.00471,91913.0,91912.0,0.368899]
[1731998475836,0.00471,91913.0,91912.0,0.378899]
[1731998477294,0.00471,91913.0,91912.0,1.078899]
[1731998477502,0.00471,91913.0,91912.0,1.18796155]
[1731998478546,0.00471,91913.0,91912.0,0.48796155]
[1731998478699,0.00471,91913.0,91912.0,0.378899]
[1731998479172,0.16310661,91923.0,91914.0,0.01]
[1731998479297,0.16310661,91923.0,91922.0,0.108787]
[1731998479795,0.0824,91930.0,91929.0,0.108779]
[1731998482141,0.0904,91930.0,91929.0,0.109779]
[1731998482948,0.0934,91930.0,91929.0,0.109779]
[1731998487990,0.25216255,91930.0,91929.0,0.001]
[1731998488210,0.38126868,91930.0,91929.0,0.001]
[1731998489365,0.27249068,91930.0,91929.0,0.001]
[1731998489779,0.381277,91930.0,91929.0,0.001]
[1731998489980,0.3829866,91930.0,91929.0,0.001]
[1731998491068,0.36265015,91930.0,91929.0,0.001]
[1731998491281,0.38298734,91930.0,91929.0,0.001]
[1731998493428,0.38299871,91930.0,91929.0,0.001]
[1731998493872,0.27422071,91930.0,91929.0,0.001]
[1731998494055,0.38299871,91930.0,91929.0,0.001]
[1731998496400,0.27393616,91930.0,91929.0,0.001]
[1731998496611,0.27422071,91930.0,91929.0,0.001]
[1731998497391,0.38299871,91930.0,91929.0,0.001]
[1731998500578,0.27422071,91930.0,91929.0,0.001]
[1731998500814,0.25387215,91930.0,91929.0,0.001]
[1731998502395,0.38300868,91930.0,91929.0,0.001]
[1731998503621,0.11546813,91930.0,91929.0,0.001]
[1731998503829,0.22453068,91930.0,91929.0,0.001]
[1731998504037,0.33330862,91930.0,91929.0,0.001]
[1731998505153,0.38060862,91930.0,91929.0,0.001]
[1731998507540,0.38061064,91930.0,91929.0,0.001]
[1731998510999,0.38061422,91930.0,91929.0,0.001]
[1731998511893,0.46112663,91930.0,91929.0,0.001]
[1731998512776,0.108787,91923.0,91911.0,0.09753039]
[1731998512978,0.02036407,91922.0,91910.0,0.01226505]
[1731998513187,0.1617391,91921.0,91910.0,0.01226505]
[1731998513398,0.0529501,91920.0,91910.0,0.01226505]
[1731998513611,0.02036407,91919.0,91908.0,0.1]
[1731998513835,0.02036407,91918.0,91908.0,0.1]
[1731998514042,0.02036407,91917.0,91907.0,0.14418151]
[1731998514252,0.02036407,91916.0,91906.0,0.0718204]
[1731998514455,0.02036407,91915.0,91902.0,0.11]
[1731998514695,0.02036407,91914.0,91910.0,0.02]
[1731998514923,0.02036407,91913.0,91905.0,0.108807]
[1731998515159,0.02036407,91912.0,91908.0,0.018]
[1731998515357,0.16417029,91918.0,91908.0,0.018]
[1731998515358,0.02036407,91911.0,91908.0,0.018]
[1731998515566,0.02036407,91911.0,91903.0,0.11997273]
[1731998515567,0.27196229,91918.0,91903.0,0.11997273]
[1731998515785,0.001,91914.0,91910.0,0.016]
[1731998515992,0.02036648,91913.0,91910.0,0.036]
[1731998516206,0.02036648,91912.0,91910.0,0.016]
[1731998516424,0.02036648,91911.0,91910.0,0.016]
[1731998517078,0.02036648,91911.0,91904.0,0.155108]
[1731998517303,0.02036648,91910.0,91904.0,0.155108]
[1731998517507,0.003,91911.0,91908.0,0.018]
[1731998517771,0.16517029,91918.0,91903.0,0.13797273]
[1731998517772,0.02037033,91910.0,91903.0,0.13797273]
[1731998517990,0.155294,91917.0,91903.0,0.13797273]
[1731998517991,0.02037051,91909.0,91903.0,0.11997273]
[1731998518197,0.005,91911.0,91904.0,0.005]
[1731998518409,0.02037063,91910.0,91904.0,0.005]
[1731998518617,0.02037063,91909.0,91908.0,0.018]
[1731998519045,0.02037063,91909.0,91903.0,0.11997273]
[1731998519046,0.02037063,91909.0,91904.0,0.108808]
[1731998519267,0.02037063,91908.0,91904.0,0.124808]
[1731998519492,0.02037063,91907.0,91904.0,0.124808]
[1731998519706,0.02037063,91906.0,91904.0,0.124808]
[1731998519923,0.002,91910.0,91904.0,0.124808]
[1731998520146,0.02036664,91909.0,91905.0,0.108807]
[1731998520375,0.02036664,91908.0,91904.0,0.108808]
[1731998520599,0.02036664,91907.0,91905.0,0.108807]
[1731998520810,0.02036664,91906.0,91905.0,0.108807]
[1731998521059,0.02036609,91906.0,91905.0,0.108807]
[1731998521267,0.02036609,91906.0,91905.0,0.125807]
[1731998521679,0.002,91909.0,91905.0,0.125807]
[1731998521891,0.02036326,91908.0,91906.0,0.108806]
[1731998522095,0.02036326,91907.0,91906.0,0.108806]
[1731998522307,0.0465,91917.0,91906.0,0.108806]
[1731998522518,0.02036091,91916.0,91908.0,0.108803]
[1731998522726,0.02036091,91915.0,91906.0,0.20630344]
[1731998522937,0.02036091,91914.0,91906.0,0.20630344]
[1731998523139,0.02036091,91913.0,91906.0,0.108806]
[1731998523349,0.02036091,91912.0,91906.0,0.108806]
[1731998523581,0.02036091,91911.0,91908.0,0.108803]
[1731998523794,0.02036091,91910.0,91908.0,0.108803]
[1731998523998,0.02036091,91909.0,91908.0,0.108803]
[1731998524252,0.02235859,91909.0,91908.0,0.20630044]
[1731998524460,0.02235859,91909.0,91908.0,0.108803]
[1731998524661,0.002,91909.0,91908.0,0.108803]
[1731998524882,0.03257118,91917.0,91908.0,0.108803]
[1731998525087,0.02035698,91916.0,91909.0,0.09750571]
[1731998525390,0.02035698,91915.0,91909.0,0.09750571]
[1731998525566,0.02035698,91914.0,91909.0,0.09750571]
[1731998525781,0.02035698,91913.0,91909.0,0.09750571]
[1731998525982,0.02035698,91912.0,91909.0,0.09750571]
[1731998526187,0.02035698,91911.0,91909.0,0.09750571]
[1731998526358,0.03256982,91917.0,91909.0,0.09750571]
[1731998526559,0.02035617,91916.0,91909.0,0.09750571]
[1731998526758,0.02035617,91915.0,91909.0,0.09750571]
[1731998527028,0.02035617,91914.0,91909.0,0.09750571]
[1731998527179,0.02035617,91913.0,91909.0,0.11550571]
[1731998527393,0.02035617,91912.0,91909.0,0.11550571]
[1731998527582,0.02035617,91911.0,91909.0,0.11550571]
[1731998527939,0.003,91916.0,91909.0,0.11550571]
[1731998528122,0.02035623,91915.0,91910.0,0.09750571]
[1731998528345,0.003,91913.0,91910.0,0.09750571]
[1731998528474,0.02135623,91912.0,91910.0,0.09750571]
[1731998528702,0.001,91912.0,91910.0,0.09750571]
[1731998529075,0.003,91913.0,91910.0,0.09750571]
[1731998529305,0.02035643,91912.0,91910.0,0.09750571]
[1731998529475,0.003,91913.0,91910.0,0.09750571]
[1731998529682,0.02035677,91912.0,91910.0,0.09750571]
[1731998529894,0.003,91913.0,91910.0,0.09750571]
[1731998530099,0.02035677,91912.0,91910.0,0.09750571]
[1731998530309,0.02035677,91911.0,91910.0,0.09750571]
[1731998530545,0.02335677,91911.0,91910.0,0.09750571]
[1731998530787,0.02035677,91911.0,91910.0,0.09750571]
[1731998530991,0.02035677,91911.0,91910.0,0.10950571]
[1731998531195,0.001,91915.0,91910.0,0.10950571]
[1731998531417,0.1239,91911.0,91910.0,0.09750571]
[1731998531643,0.1239,91911.0,91898.0,0.0008551]
[1731998531644,0.078,91909.0,91904.0,0.09836051]
[1731998531854,0.05293418,91908.0,91904.0,0.0008548]
[1731998532078,0.05293418,91907.0,91904.0,0.0008548]
[1731998532283,0.108808,91905.0,91904.0,0.0008548]
[1731998532514,0.17506618,91905.0,91904.0,0.0008548]
[1731998532718,0.17506618,91905.0,91904.0,0.0188548]
[1731998534456,0.06725818,91905.0,91904.0,0.0238548]
[1731998534654,0.06725818,91905.0,91904.0,0.0058548]
[1731998534899,0.06925818,91905.0,91904.0,0.0068548]
[1731998535932,0.17806618,91905.0,91904.0,0.0068548]
[1731998540671,0.36802873,91905.0,91904.0,0.0068548]
[1731998541551,0.34767055,91905.0,91904.0,0.0068548]
[1731998542206,0.1298,91905.0,91904.0,0.0068548]
[1731998542389,0.238608,91905.0,91904.0,0.0068548]
[1731998543424,0.258955,91905.0,91904.0,0.0068548]
[1731998545434,0.25895172,91905.0,91904.0,0.0068548]
[1731998547259,0.36801427,91905.0,91904.0,0.0068548]
[1731998547459,0.34767055,91905.0,91904.0,0.0068548]
[1731998549059,0.36767055,91905.0,91904.0,0.0068548]
[1731998549479,0.46767055,91905.0,91904.0,0.0068548]
[1731998550252,0.46667055,91905.0,91904.0,0.0018548]
[1731998550469,0.48967055,91905.0,91904.0,0.0018548]
[1731998550721,0.48967055,91905.0,91898.0,0.0008551]
[1731998550722,0.022,91899.0,91898.0,0.0008551]
[1731998551022,0.57308996,91899.0,91898.0,0.0008551]
[1731998551898,0.70451846,91899.0,91898.0,0.0008551]
[1731998552105,0.70451846,91899.0,91898.0,0.0028551]
[1731998552106,0.73151846,91899.0,91898.0,0.0028551]
[1731998552308,0.60008996,91899.0,91898.0,0.0028551]
[1731998552516,0.378718,91896.0,91895.0,0.0008551]
[1731998552743,0.56829296,91896.0,91895.0,0.0008551]
[1731998552946,0.48778055,91896.0,91895.0,0.0008551]
[1731998554010,0.54178055,91896.0,91895.0,0.0038551]
[1731998554448,0.62029296,91896.0,91895.0,1e-07]
[1731998554682,0.356431,91885.0,91853.0,0.0017092]
[1731998554899,0.54600596,91885.0,91853.0,0.0017092]
[1731998556046,0.54600596,91885.0,91870.0,0.16317029]
[1731998556047,0.36549355,91885.0,91870.0,0.16317029]
[1731998556276,0.36549355,91885.0,91864.0,0.0765]
[1731998556482,0.38549355,91885.0,91884.0,0.99113645]
[1731998556902,0.40049355,91885.0,91884.0,0.99313645]
[1731998558159,0.39049355,91885.0,91884.0,0.99313645]
[1731998558819,0.38049355,91885.0,91884.0,0.99313645]
[1731998559016,0.34139355,91885.0,91884.0,0.99313645]
[1731998559821,0.035,91885.0,91884.0,0.99313645]
[1731998560669,0.143831,91885.0,91884.0,0.99313645]
[1731998561088,0.25289355,91885.0,91884.0,0.99313645]
[1731998561712,0.23789355,91885.0,91884.0,0.99113645]
[1731998562995,0.21789355,91885.0,91884.0,0.98913645]
[1731998563433,0.21789355,91885.0,91884.0,0.99113645]
[1731998563434,0.23089355,91885.0,91884.0,0.99113645]
[1731998563683,0.22889355,91885.0,91884.0,0.99013645]
[1731998563883,0.24989355,91885.0,91884.0,0.99213645]
[1731998564196,0.23889355,91885.0,91884.0,0.99113645]
[1731998564415,0.25489355,91885.0,91884.0,0.99313645]
[1731998571106,0.35089355,91885.0,91884.0,0.99313645]
[1731998571326,0.39619355,91885.0,91884.0,0.99313645]
[1731998580397,0.38619355,91885.0,91884.0,0.99313645]
[1731998584958,0.39619355,91885.0,91884.0,0.99313645]
[1731998585674,0.38619355,91885.0,91884.0,0.99313645]
[1731998587743,0.39619355,91885.0,91884.0,0.99313645]
[1731998587943,0.37969626,91885.0,91884.0,0.99313645]
[1731998595556,0.64571561,91885.0,91884.0,0.99313645]
[1731998595965,0.53665306,91885.0,91884.0,0.99313645]
[1731998596413,0.52265306,91885.0,91884.0,0.99113645]
[1731998596632,0.54965306,91885.0,91884.0,0.90928222]
[1731998596861,0.52665306,91885.0,91884.0,0.90728222]
[1731998597062,0.52865306,91885.0,91884.0,0.90728222]
[1731998597272,0.77101574,91885.0,91884.0,0.90728222]
[1731998597511,0.52865306,91885.0,91884.0,0.90728222]
[1731998597702,0.52865306,91885.0,91884.0,0.90528222]
[1731998597918,0.50165306,91885.0,91884.0,0.90528222]
[1731998598120,0.52865306,91885.0,91884.0,0.90728222]
[1731998598346,0.52665306,91885.0,91884.0,0.90728222]
[1731998598483,0.52865306,91885.0,91884.0,0.90728222]
[1731998599091,0.52865306,91885.0,91884.0,0.90528222]
[1731998599294,0.77291684,91885.0,91884.0,0.90528222]
[1731998599503,0.55365306,91885.0,91884.0,0.81821422]
[1731998599701,0.55565306,91885.0,91884.0,0.79644722]
[1731998599905,0.90897939,91885.0,91884.0,0.79644722]
[1731998600112,0.55565306,91885.0,91884.0,0.79644722]
[1731998600311,0.55365306,91885.0,91884.0,0.79644722]
[1731998600511,0.87838115,91885.0,91884.0,0.5678062]
[1731998600916,0.89873236,91885.0,91884.0,0.5678062]
[1731998601132,0.55365306,91885.0,91884.0,0.5678062]
[1731998601345,0.68306674,91885.0,91884.0,0.4807382]
[1731998601552,0.76357301,91885.0,91884.0,0.4589712]
[1731998601752,0.57399805,91885.0,91884.0,0.4589712]
[1731998602152,0.81808517,91885.0,91884.0,0.4589712]
[1731998602426,0.81808517,91885.0,91884.0,0.4372042]
[1731998602833,0.81807723,91885.0,91884.0,0.3936702]
[1731998603037,0.89858964,91885.0,91884.0,0.3501362]
[1731998603218,0.57399805,91885.0,91884.0,0.3501362]
[1731998603696,0.57599805,91885.0,91884.0,0.3283692]
[1731998603892,0.57599805,91885.0,91884.0,0.3066022]
[1731998604092,0.52169626,91885.0,91884.0,0.3066022]
[1731998605288,0.51969626,91885.0,91884.0,0.3066022]
[1731998605489,0.70343914,91885.0,91884.0,0.19857506]
[1731998605788,0.89862369,91885.0,91884.0,0.15276185]
[1731998605991,0.81811128,91885.0,91884.0,0.15276185]
[1731998606120,0.62292673,91885.0,91884.0,0.15276185]
[1731998606427,0.73731751,91885.0,91884.0,0.04392685]
[1731998606924,0.022,91878.0,91877.0,0.0008553]
[1731998607147,0.64922637,91878.0,91877.0,0.0008553]
[1731998607366,0.79557318,91878.0,91877.0,3e-07]
[1731998607595,0.64722637,91878.0,91877.0,3e-07]
[1731998607818,0.64922637,91878.0,91877.0,3e-07]
[1731998608516,0.68309017,91878.0,91877.0,3e-07]
[1731998608724,0.253844,91874.0,91873.0,0.00171]
[1731998608961,0.48640655,91874.0,91873.0,0.00171]
[1731998609392,0.48440655,91874.0,91873.0,0.00171]
[1731998610222,0.65764545,91874.0,91873.0,0.00171]
[1731998610437,0.72947094,91874.0,91873.0,0.00171]
[1731998611054,0.58323204,91874.0,91873.0,0.00171]
[1731998611269,0.72944748,91874.0,91873.0,0.00171]
[1731998611506,0.58323204,91874.0,91873.0,0.00171]
[1731998611722,0.69429459,91874.0,91873.0,0.00171]
[1731998611954,0.69429459,91874.0,91868.0,0.06138612]
[1731998611955,0.13085,91869.0,91868.0,0.06138612]
[1731998612188,0.57512496,91869.0,91868.0,0.01784612]
[1731998612426,0.57512496,91869.0,91868.0,1.2e-07]
[1731998612427,0.57312496,91869.0,91868.0,1.2e-07]
[1731998612693,0.49825535,91869.0,91868.0,1.2e-07]
[1731998612927,0.57876776,91869.0,91868.0,1.2e-07]
[1731998613150,0.73020763,91869.0,91868.0,1.2e-07]
[1731998613378,0.83927018,91869.0,91868.0,1.2e-07]
[1731998614486,0.02,91861.0,91860.0,0.06215999]
[1731998614708,0.57473496,91861.0,91860.0,0.06215999]
[1731998615761,0.60173496,91861.0,91860.0,0.06215999]
[1731998616259,0.54022255,91861.0,91860.0,0.06215999]
[1731998616551,0.59373496,91861.0,91860.0,0.06215999]
[1731998616773,0.44143496,91861.0,91860.0,0.06215999]
[1731998616994,0.46843496,91861.0,91860.0,0.06215999]
[1731998617211,0.49543496,91861.0,91860.0,0.06215999]
[1731998617876,0.54047856,91861.0,91860.0,0.06215999]
[1731998618518,0.51347856,91861.0,91860.0,0.06215999]
[1731998618924,0.54047856,91861.0,91860.0,0.06215999]
[1731998619188,0.51347856,91861.0,91860.0,0.06215999]
[1731998619417,0.54047856,91861.0,91860.0,0.06301479]
[1731998621555,0.54247856,91861.0,91860.0,0.06301479]
[1731998621787,0.57632513,91861.0,91860.0,0.06301479]
[1731998621994,0.61932513,91861.0,91860.0,0.06301479]
[1731998622661,0.69962513,91861.0,91860.0,0.06301479]
[1731998622899,0.72141778,91861.0,91860.0,0.06301479]
[1731998623111,0.72341778,91861.0,91860.0,0.06301479]
[1731998623329,0.74374172,91861.0,91860.0,0.06301479]
[1731998623540,0.85280427,91861.0,91860.0,0.06301479]
[1731998623759,0.82425413,91861.0,91860.0,0.06301479]
[1731998624005,0.74374172,91861.0,91860.0,0.06301479]
[1731998625254,0.74374172,91861.0,91860.0,0.06261479]
[1731998626475,0.74376207,91861.0,91860.0,0.06261479]
[1731998627720,0.82427448,91861.0,91860.0,0.06261479]
[1731998628514,0.84341438,91861.0,91860.0,0.06261479]
[1731998629130,0.82427448,91861.0,91860.0,0.06261479]
[1731998630183,0.92165564,91861.0,91860.0,0.06261479]
[1731998631009,0.82427448,91861.0,91860.0,0.06261479]
[1731998631455,0.92165564,91861.0,91860.0,0.06261479]
[1731998631933,0.82427448,91861.0,91860.0,0.06261479]
[1731998632351,0.79727448,91861.0,91860.0,0.06261479]
[1731998632983,0.82427448,91861.0,91860.0,0.06261479]
[1731998633198,0.97045561,91861.0,91860.0,0.06261479]
[1731998633843,0.97047134,91861.0,91860.0,0.06261479]
[1731998634485,0.82429021,91861.0,91860.0,0.06261479]
[1731998635337,0.96519839,91861.0,91860.0,0.06261479]
[1731998635565,0.82429021,91861.0,91860.0,0.06261479]
[1731998635771,0.82229021,91861.0,91860.0,0.06261479]
[1731998636191,1.01719839,91861.0,91860.0,0.06261479]
[1731998636522,0.82229021,91861.0,91860.0,0.06261479]
[1731998637133,1.01726701,91861.0,91860.0,0.06261479]
[1731998637354,0.82229021,91861.0,91860.0,0.06261479]
[1731998637568,0.82429021,91861.0,91860.0,0.06261479]
[1731998637800,0.81429021,91861.0,91860.0,7.9e-07]
[1731998638000,1.01930574,91861.0,91860.0,7.9e-07]
[1731998638321,0.82429021,91861.0,91860.0,7.9e-07]
[1731998638746,1.06792543,91861.0,91860.0,7.9e-07]
[1731998638950,0.82429021,91861.0,91860.0,7.9e-07]
[1731998639633,0.79729021,91861.0,91860.0,7.9e-07]
[1731998640061,1.44425276,91861.0,91860.0,7.9e-07]
[1731998640265,0.43158141,91853.0,91852.0,0.01810619]
[1731998640472,0.7738367,91853.0,91852.0,0.01810619]
[1731998640676,0.72087829,91853.0,91852.0,0.01810619]
[1731998640897,0.62746636,91853.0,91852.0,0.01810619]
[1731998641925,0.65446636,91853.0,91852.0,0.01810619]
[1731998642133,0.8497077,91853.0,91852.0,0.01810619]
[1731998642342,0.8767077,91853.0,91852.0,0.01810619]
[1731998642545,0.8497077,91853.0,91852.0,0.01810619]
[1731998642958,0.79619529,91853.0,91852.0,0.01810619]
[1731998643178,0.57395395,91853.0,91852.0,0.01810619]
[1731998643398,0.57395249,91853.0,91852.0,0.01810619]
[1731998643809,0.57195249,91853.0,91852.0,0.01810619]
[1731998644230,0.62333087,91853.0,91852.0,0.01810619]
[1731998644431,0.62533087,91853.0,91852.0,0.01810619]
[1731998644637,0.62333087,91853.0,91852.0,0.01810619]
[1731998644849,0.57395249,91853.0,91852.0,0.01810619]
[1731998645053,0.60095249,91853.0,91852.0,0.01810619]
[1731998645264,0.54695249,91853.0,91852.0,0.01810619]
[1731998645469,0.79100416,91853.0,91852.0,0.01810619]
[1731998645673,0.845184,91853.0,91852.0,0.01810619]
[1731998645886,0.60095249,91853.0,91852.0,0.01810619]
[1731998646095,0.71001504,91853.0,91852.0,0.01810619]
[1731998646841,0.7100087,91853.0,91852.0,0.01810619]
[1731998647535,0.60094615,91853.0,91852.0,0.01810619]
[1731998650464,0.89380816,91853.0,91852.0,0.01810619]
[1731998650810,0.230875,91848.0,91847.0,0.0008547]
[1731998651044,0.50726456,91848.0,91847.0,0.0008547]
[1731998651863,0.53426456,91848.0,91847.0,0.0008547]
[1731998652065,0.56126456,91848.0,91847.0,0.0008547]
[1731998652511,0.48075215,91848.0,91847.0,0.0008547]
[1731998652759,0.56126456,91848.0,91847.0,0.0008547]
[1731998653142,0.52866885,91848.0,91847.0,0.0008547]
[1731998653721,0.52866885,91848.0,91829.0,0.1262]
[1731998653722,0.118896,91830.0,91829.0,0.1262]
[1731998654131,0.31884328,91830.0,91829.0,0.1262]
[1731998655005,0.33784328,91830.0,91829.0,0.1262]
[1731998655412,0.36484328,91830.0,91829.0,0.1262]
[1731998657228,0.39744813,91830.0,91829.0,0.1262]
[1731998657499,0.39745511,91830.0,91829.0,0.1262]
[1731998658277,0.39745535,91830.0,91829.0,0.1262]
[1731998660507,0.31694294,91830.0,91829.0,0.1262]
[1731998663628,0.20804694,91830.0,91829.0,0.1262]
[1731998664366,0.20804694,91830.0,91829.0,0.1492]
[1731998665479,0.09898439,91830.0,91829.0,0.258098]
[1731998666912,0.07998439,91830.0,91829.0,0.258098]
[1731998667132,0.07998439,91830.0,91829.0,0.2589533]
[1731998667370,0.09369499,91830.0,91829.0,0.2589533]
[1731998667777,0.05469499,91830.0,91829.0,0.2589533]
[1731998667982,0.06869499,91830.0,91829.0,0.2599533]
[1731998668183,0.06160167,91830.0,91829.0,0.2599533]
[1731998668621,0.06160167,91830.0,91829.0,0.2589533]
[1731998668818,0.06460167,91830.0,91829.0,0.2599533]
[1731998669023,0.06460167,91830.0,91829.0,0.1280553]
[1731998669703,0.07660167,91830.0,91829.0,0.1290553]
[1731998670230,0.06660167,91830.0,91829.0,0.1280553]
[1731998670463,0.07560167,91830.0,91829.0,0.1280553]
[1731998670935,0.0107106,91830.0,91829.0,0.1270553]
[1731998671170,0.07457997,91830.0,91829.0,0.1270553]
[1731998671631,0.06557997,91830.0,91829.0,0.1270553]
[1731998671863,0.0217106,91830.0,91829.0,0.1270553]
[1731998672092,0.0745736,91830.0,91829.0,0.1270553]
[1731998673235,0.0655736,91830.0,91829.0,0.2359533]
[1731998673722,0.0745736,91830.0,91829.0,0.2359533]
[1731998674868,0.0745736,91830.0,91829.0,0.2589533]
[1731998675573,0.04204252,91830.0,91829.0,0.2589533]
[1731998678148,0.04204252,91830.0,91829.0,0.4949066]
[1731998678368,0.07456017,91830.0,91829.0,0.4949066]
[1731998678595,0.07456017,91830.0,91829.0,0.3630086]
[1731998678824,0.07456017,91830.0,91829.0,0.2368086]
[1731998679500,0.07456017,91830.0,91829.0,0.3457066]
[1731998680626,0.07456017,91830.0,91829.0,0.4900066]
[1731998682362,0.07455503,91830.0,91829.0,0.4900066]
[1731998684669,0.04203538,91830.0,91829.0,0.4670066]
[1731998685844,0.0217106,91830.0,91829.0,0.4670066]
[1731998686076,0.04203847,91830.0,91829.0,0.4670066]
[1731998686529,0.04203847,91830.0,91829.0,0.4900066]
[1731998686748,0.04203847,91830.0,91829.0,0.5900066]
[1731998686971,0.0217106,91830.0,91829.0,0.6000066]
[1731998687201,0.0217106,91830.0,91829.0,0.94616887]
[1731998687433,0.0127106,91830.0,91829.0,0.79958156]
[1731998687657,0.0127106,91830.0,91829.0,0.71906915]
[1731998687905,0.0137106,91830.0,91829.0,0.72206915]
[1731998688129,0.0027106,91830.0,91829.0,0.72206915]
[1731998688344,0.0057106,91830.0,91829.0,0.72506915]
[1731998688551,0.0027106,91830.0,91829.0,0.72206915]
[1731998688754,0.0057106,91830.0,91829.0,0.72506915]
[1731998689218,0.0047106,91830.0,91829.0,0.72206915]
[1731998689432,0.0047106,91830.0,91829.0,0.76657283]
[1731998689640,0.0067106,91830.0,91829.0,0.77157283]
[1731998690050,0.0047106,91830.0,91829.0,0.76657283]
[1731998690298,0.0047106,91830.0,91829.0,0.77257283]
[1731998690542,0.0067106,91830.0,91829.0,0.77257283]
[1731998690749,0.0067106,91830.0,91829.0,1.47257283]
[1731998692736,0.16317029,91845.0,91844.0,0.34939241]
[1731998693364,0.0017102,91853.0,91852.0,0.10887]
[1731998693571,0.02201107,91853.0,91852.0,0.13187]
[1731998694850,0.03501107,91853.0,91852.0,0.13287]
[1731998695689,0.04501107,91853.0,91852.0,0.13387]
[1731998696467,0.0247102,91853.0,91852.0,0.13387]
[1731998696675,0.0247102,91853.0,91852.0,0.26467]
[1731998700725,0.0247102,91853.0,91852.0,0.36467]
[1731998700953,0.0247102,91853.0,91852.0,0.45518241]
[1731998701186,0.0247102,91853.0,91852.0,0.37467]
[1731998701424,0.0247102,91853.0,91852.0,0.45518241]
[1731998701643,0.0247102,91853.0,91852.0,0.37467]
[1731998702306,0.0147102,91853.0,91852.0,0.37367]
[1731998702537,0.0017102,91853.0,91852.0,0.37267]
[1731998702757,0.0067102,91853.0,91852.0,0.56756868]
[1731998702961,0.0037102,91853.0,91852.0,0.47118241]
[1731998703192,0.0037102,91853.0,91852.0,0.53674941]
[1731998703401,0.0037102,91853.0,91852.0,0.27267]
[1731998703402,0.0067102,91853.0,91852.0,0.27267]
[1731998703609,0.0067102,91853.0,91852.0,0.46205241]
[1731998703823,0.0047102,91853.0,91852.0,0.45405241]
[1731998704282,0.0067102,91853.0,91852.0,0.57111496]
[1731998705339,0.0067102,91853.0,91852.0,0.59963394]
[1731998706008,0.0067102,91853.0,91852.0,1.13963394]
[1731998706228,0.0067102,91853.0,91852.0,1.03060255]
[1731998707851,0.0067102,91853.0,91852.0,1.11111496]
[1731998709435,0.0067102,91853.0,91852.0,1.10111496]
[1731998709661,0.0067102,91853.0,91852.0,0.45844496]
[1731998711200,0.0067102,91853.0,91852.0,1.07895737]
[1731998711410,0.0067102,91853.0,91852.0,0.99844496]
[1731998711624,0.0067102,91853.0,91852.0,1.07895737]
[1731998711862,0.0067102,91853.0,91852.0,0.99844496]
[1731998712302,0.0067102,91853.0,91852.0,1.07895737]
[1731998715777,0.0067102,91853.0,91852.0,1.12855737]
[1731998718599,0.0067102,91853.0,91852.0,1.22577342]
[1731998719008,0.0067102,91853.0,91852.0,1.12855737]
[1731998720552,0.0067102,91853.0,91852.0,0.96753255]
[1731998720761,0.0067102,91853.0,91852.0,1.04804496]
[1731998721012,0.0067102,91853.0,91852.0,1.14528226]
[1731998721450,0.0067102,91853.0,91852.0,1.22579467]
[1731998721687,0.0067102,91853.0,91852.0,1.12855737]
[1731998723004,0.0067102,91853.0,91852.0,1.21035737]
[1731998723209,0.0067102,91853.0,91852.0,1.21235737]
[1731998723414,0.0067102,91853.0,91852.0,1.21321247]
[1731998723630,0.0067102,91853.0,91852.0,1.40773624]
[1731998724523,0.0067102,91853.0,91852.0,1.40573624]
[1731998724774,0.16317029,91876.0,91873.0,0.01]
[1731998724983,0.16317029,91876.0,91873.0,0.43141996]
[1731998725211,0.16317029,91876.0,91873.0,0.44141996]
[1731998725867,0.00471,91874.0,91873.0,0.45041996]
[1731998726302,0.00171,91874.0,91873.0,0.44141996]
[1731998726514,0.00671,91874.0,91873.0,0.45841996]
[1731998726929,0.00371,91874.0,91873.0,1.13941996]
[1731998727140,0.00671,91874.0,91873.0,1.14841996]
[1731998727616,0.00671,91874.0,91873.0,1.06790755]
[1731998727852,0.00671,91874.0,91873.0,1.24575897]
[1731998728058,0.00471,91874.0,91873.0,1.15724635]
[1731998728274,0.00571,91874.0,91873.0,1.17024635]
[1731998728483,0.00571,91874.0,91873.0,1.11761771]
[1731998728694,0.00571,91874.0,91873.0,1.26362623]
[1731998729323,0.00571,91874.0,91873.0,1.11761771]
[1731998731074,0.05521,91874.0,91873.0,1.11761771]
[1731998731299,0.05521,91874.0,91873.0,0.41761771]
[1731998731516,0.05521,91874.0,91873.0,0.42761771]
[1731998731731,0.05521,91874.0,91873.0,0.61260935]
[1731998731963,0.00571,91874.0,91873.0,0.62260935]
[1731998732600,0.00571,91874.0,91873.0,0.67096525]
[1731998732824,0.00571,91874.0,91873.0,0.27555516]
[1731998733041,0.13691,91874.0,91873.0,0.17555516]
[1731998733480,0.15724373,91874.0,91873.0,0.17555516]
[1731998733991,0.13691,91874.0,91873.0,0.17555516]
[1731998734422,0.13691,91874.0,91873.0,0.27555516]
[1731998737451,0.13691,91874.0,91873.0,0.06671016]
[1731998737684,0.15724454,91874.0,91873.0,0.17555516]
[1731998737890,0.18978126,91874.0,91873.0,0.17555516]
[1731998738332,0.15424454,91874.0,91873.0,0.16655516]
[1731998738562,0.18678553,91874.0,91873.0,0.16655516]